Workbook

Sheet Summary
A1: Client: | C1: Walmart | G1: Mentions
A2: Yelp Reviews URL: | B2: http://www.yelp.com/biz/walmart-springville-3 | E2: Positive | G2: =INDEX(sentimentPosValues, 1, COUNTA(sentimentPosValues)) -> 138 | K2: 874
A3: 0.31 | C3: 2:1
A5: strength | C5: sentiment | E5: Neutral | G5: =INDEX(sentimentNeuValues, 1, COUNTA(sentimentNeuValues)) -> 691 | K5: 420
A7: 0.25 | C7: 0.42
E8: Negative | G8: =INDEX(sentimentNegValues, 1, COUNTA(sentimentNegValues)) -> 45 | K8: 218
A9: passion | C9: reach
A27: Sample Reviews
A28: Yelp Review | C28: =INDEX(reviewsRatings, COUNTA(reviewsRatings)-1,1)&"/5" -> 3/5 | E28: Yelp Review | G28: =INDEX(reviewsRatings, COUNTA(reviewsRatings),1)&"/5" -> 4/5
A29: ="'"&INDEX(reviewsReviews, COUNTA(reviewsReviews)-1,1)&"' - "&INDEX(reviewsReviewer, COUNTA(reviewsReviewer)-1,1) -> 'Much less crowded than the Orem location, though seemingly a little smaller.' - Morgan V | E29: ="'"&INDEX(reviewsReviews, COUNTA(reviewsReviews),1)&"' - "&INDEX(reviewsReviewer, COUNTA(reviewsReviewer),1) -> 'Awesome Walmart!' - John Gugenhi
A34: Top Keywords of All Time | E34: Top Hashtags
A35: =INDEX(topKeywords, 2, 1) -> walmart | C35: =INDEX(topKeywordsCount, 2, 1) -> 1956 | E35: =INDEX(topHashtags, 2, 1) -> deal | G35: =INDEX(topHashtagsCount, 2, 1) -> 207
A36: =INDEX(topKeywords, 3, 1) -> mart | C36: =INDEX(topKeywordsCount, 3, 1) -> 1834 | E36: =INDEX(topHashtags, 3, 1) -> walmart | G36: =INDEX(topHashtagsCount, 3, 1) -> 201
A37: =INDEX(topKeywords, 4, 1) -> store | C37: =INDEX(topKeywordsCount, 4, 1) -> 1193 | E37: =INDEX(topHashtags, 4, 1) -> web | G37: =INDEX(topHashtagsCount, 4, 1) -> 92
A38: =INDEX(topKeywords, 5, 1) -> court | C38: =INDEX(topKeywordsCount, 5, 1) -> 756 | E38: =INDEX(topHashtags, 5, 1) -> car | G38: =INDEX(topHashtagsCount, 5, 1) -> 48
A39: =INDEX(topKeywords, 6, 1) -> people | C39: =INDEX(topKeywordsCount, 6, 1) -> 754 | E39: =INDEX(topHashtags, 6, 1) -> top | G39: =INDEX(topHashtagsCount, 6, 1) -> 48
A40: =INDEX(topKeywords, 7, 1) -> price | C40: =INDEX(topKeywordsCount, 7, 1) -> 527 | E40: =INDEX(topHashtags, 7, 1) -> newsjp | G40: =INDEX(topHashtagsCount, 7, 1) -> 41
A41: =INDEX(topKeywords, 8, 1) -> coupons | C41: =INDEX(topKeywordsCount, 8, 1) -> 503 | E41: =INDEX(topHashtags, 8, 1) -> usa | G41: =INDEX(topHashtagsCount, 8, 1) -> 35
A42: =INDEX(topKeywords, 9, 1) -> stores | C42: =INDEX(topKeywordsCount, 9, 1) -> 499 | E42: =INDEX(topHashtags, 9, 1) -> asus | G42: =INDEX(topHashtagsCount, 9, 1) -> 26
A43: =INDEX(topKeywords, 10, 1) -> defendant | C43: =INDEX(topKeywordsCount, 10, 1) -> 304 | E43: =INDEX(topHashtags, 10, 1) -> android | G43: =INDEX(topHashtagsCount, 10, 1) -> 25
A44: =INDEX(topKeywords, 11, 1) -> parking | C44: =INDEX(topKeywordsCount, 11, 1) -> 276 | E44: =INDEX(topHashtags, 11, 1) -> hot | G44: =INDEX(topHashtagsCount, 11, 1) -> 16
C46: Compiled by Spark Genius LLC

Sheet Data - Historical
B1: 2011-03-20 | C1: 2011-03-22 | D1: 2011-03-24 | E1: 2011-03-26 | F1: 2011-03-28 | G1: 2011-04-04T14:57:21 | H1: 2011-04-06T16:04:15 | I1: 2011-04-11T10:23:32 | J1: 2011-04-13T13:26:46 | K1: 2011-04-13T13:28:37 | L1: 2011-04-13T13:29:24 | M1: 2011-04-13T13:55:20
A2: Sentiment
A3: Positive | B3: 89 | C3: 56 | D3: 30 | E3: 65 | F3: 70 | G3: 120 | H3: 152 | I3: 144 | J3: 114 | K3: 114 | L3: 114 | M3: 138
A4: Neutral | B4: 389 | C4: 380 | D4: 403 | E4: 417 | F4: 400 | G4: 665 | H4: 668 | I4: 687 | J4: 637 | K4: 637 | L4: 637 | M4: 691
A5: Negative | B5: 30 | C5: 17 | D5: 14 | E5: 15 | F5: 26 | G5: 43 | H5: 57 | I5: 41 | J5: 49 | K5: 49 | L5: 49 | M5: 45
A7: Strength | B7: 0.49 | C7: 0.5 | D7: 0.47 | E7: 0.55 | F7: 0.51 | G7: 0.24 | H7: 0.31 | I7: 0.32 | J7: 0.27 | K7: 0.27 | L7: 0.27 | M7: 0.27
A9: Passion | B9: 0.35 | C9: 0.4 | D9: 0.3 | E9: 0.31 | F9: 0.32 | G9: 0.21 | H9: 0.25 | I9: 0.25 | J9: 0.3 | K9: 0.3 | L9: 0.3 | M9: 0.26
A11: Reach | B11: 0.64 | C11: 0.64 | D11: 0.65 | E11: 0.62 | F11: 0.65 | G11: 0.43 | H11: 0.42 | I11: 0.45 | J11: 0.34 | K11: 0.34 | L11: 0.34 | M11: 0.41
A13: Unique Authors | B13: 300 | C13: 341 | D13: 320 | E13: 289 | F13: 321 | G13: 488 | H13: 504 | I13: 510 | J13: 406 | K13: 406 | L13: 406 | M13: 484
A15: Retweets | B15: 49 | C15: 10 | D15: 122 | E15: 39 | F15: 28 | G15: 29 | H15: 26 | I15: 34 | J15: 15 | K15: 15 | L15: 15 | M15: 24

Sheet Data - Cumulative
A1: Top Keywords | B1: Keyword | C1: Count | E1: Top Hashtags | F1: Hashtag | G1: Count | I1: Reviews | J1: Rating | K1: Reviewer | L1: Review
B2: walmart | C2: 1956 | F2: deal | G2: 207 | J2: 3 | K2: Morgan V | L2: Much less crowded than the Orem location, though seemingly a little smaller.
B3: mart | C3: 1834 | F3: walmart | G3: 201 | J3: 4 | K3: John Gugenhi | L3: Awesome Walmart!
B4: store | C4: 1193 | F4: web | G4: 92
B5: court | C5: 756 | F5: car | G5: 48
B6: people | C6: 754 | F6: top | G6: 48
B7: price | C7: 527 | F7: newsjp | G7: 41
B8: coupons | C8: 503 | F8: usa | G8: 35
B9: stores | C9: 499 | F9: asus | G9: 26
B10: defendant | C10: 304 | F10: android | G10: 25
B11: parking | C11: 276 | F11: hot | G11: 16
B12: free | C12: 266 | F12: izcalli | G12: 14
B13: coupon | C13: 205 | F13: apple | G13: 14
B14: tractor | C14: 160 | F14: uknowlifehardwhen | G14: 9
B15: news | C15: 143 | F15: plus | G15: 8
B16: trailer | C16: 108 | F16: wal-mart | G16: 8
B17: time | C17: 104 | F17: familymovie | G17: 7
B18: police | C18: 92 | F18: scientificallyproven | G18: 7
B19: online | C19: 76 | F19: giveaway | G19: 6
B20: game | C20: 46 | F20: mbjobs | G20: 6
B21: book | C21: 18 | F21: jobs | G21: 6
B22: champ904 | C22: 17 | F22: npr | G22: 5
B23: deluxe | C23: 15 | F23: v12 | G23: 5
B24: edition | C24: 15 | F24: nascar | G24: 4
B25: exclusively | C25: 15 | F25: ipad2 | G25: 3
B26: releasing | C26: 15 | F26: nwo | G26: 3
B27: rumor | C27: 15 | F27: china | G27: 3
B28: gaga | C28: 15 | F28: boycott | G28: 3
B29: born | C29: 15 | F29: dhs | G29: 3
B30: powell | C30: 8 | F30: activist | G30: 3
B31: wlbt | C31: 6 | F31: win | G31: 3
B32: dkenney | C32: 6 | F32: arsenal | G32: 3
B33: love | C33: 6 | F33: news | G33: 3
B34: brownsuga0880 | C34: 6 | F34: teamtarget | G34: 3
B35: reminds | C35: 6 | F35: new | G35: 2
B36: live | C36: 6
B37: dertyboyscola | C37: 3
B38: south | C38: 3
B39: depressing | C39: 3
B40: batch | C40: 3
B41: stuff | C41: 3
B42: place | C42: 3
B43: commit | C43: 3
B44: suicide | C44: 3
B45: great | C45: 1
B46: bergsiefromkfr | C46: 1
B47: read | C47: 1
B48: tips | C48: 1
B49: shop | C49: 1
B50: asianparents | C50: 1
B51: abortions | C51: 1
B52: mizsp | C52: 1
B53: quit | C53: 1
